[Event "Lueneburg Open-A 2019"]
[Site "Lueneburg"]
[Date "2019.08.03"]
[Round "1.24"]
[White "Wunderlich, Matthias"]
[Black "Terhorst, Jochen"]
[Result "0-1"]
[ECO "A00"]
[WhiteElo "1792"]
[BlackElo "2144"]
[Annotator "NA"]
[PlyCount "56"]
[EventDate "2019.08.03"]
[EventType "swiss"]
[EventCountry "GER"]
[SourceTitle "playchess.com"]
[Source "ChessBase"]
[SourceQuality "1"]
[TimeControl "40/5400+30:1800+30"]

1. Nc3 {[%emt 0:00:00]} d5 {[%emt 0:00:00]} 2. e4 {[%emt 0:00:00]} dxe4 {[%emt 0:00:00]} 3. Nxe4 {[%emt 0:00:00]} Nd7 {[%emt 0:00:00]} 4. Bc4 {[%emt 0:01:14]} e6 {[%emt 0:00:00]} 5. Nf3 {[%emt 0:01:04]} Ngf6 {[%emt 0:02:58]} 6. d3 {[%emt 0:02:28]} Be7 {[%emt 0:03:03]} 7. Qe2 {[%emt 0:05:05]} Nb6 {[%emt 0:03:45]} 8. Bb3 {[%emt 0:01:34]} a5 {[%emt 0:03:38]} 9. c3 {[%emt 0:04:06]} a4 {[%emt 0:01:11]} 10. Bc2 {[%emt 0:01:10]} Nxe4 {[%emt 0:13:18]} 11. dxe4 {[%emt 0:07:25]} a3 {[%emt 0:11:33]} 12. b3 {[%emt 0:05:27]} Qd6 {[%emt 0:17:42]} 13. Be3 {[%emt 0:03:18]} e5 {[%emt 0:06:08]} 14. Rd1 {[%emt 0:11:18]} Qc6 {[%emt 0:07:11]} 15. c4 {[%emt 0:01:02]} f6 {[%emt 0:03:25]} 16. O-O {[%emt 0:12:09]} O-O {[%emt 0:00:57]} 17. Nh4 {[%emt 0:07:17]} g6 {[%emt 0:01:04]} 18. f4 {[%emt 0:07:18]} exf4 {[%emt 0:05:18]} 19. Bxf4 {[%emt 0:05:47]} g5 {[%emt 0:06:16]} 20. Bxg5 {[%emt 0:01:19]} fxg5 {[%emt 0:00:51]} 21. Qh5 {[%emt 0:03:31]} Qc5+ {[%emt 0:06:36]} 22. Kh1 {[%emt 0:00:44]} Qe5 {[%emt 0:00:15]} 23. Nf5 {[%emt 0:03:20]} Bxf5 {[%emt 0:00:20]} 24. exf5 {[%emt 0:00:28]} Bf6 {[%emt 0:00:40]} 25. Rde1 {[%emt 0:02:46]} Qc3 {[%emt 0:01:12]} 26. Re6 {[%emt 0:02:17]} Rad8 {[%emt 0:01:21]} 27. Qh6 {[%emt 0:02:13]} Rd6 {[%emt 0:01:19]} 28. Bb1 {[%emt 0:02:53]} Bg7 {[%emt 0:00:40]} 0-1

[Event "Lueneburg Open-A 2019"]
[Site "Lueneburg"]
[Date "2019.08.03"]
[Round "1.25"]
[White "Ishak, Rashid"]
[Black "Schaefer, Maik"]
[Result "1-0"]
[ECO "B47"]
[WhiteElo "2141"]
[BlackElo "1781"]
[Annotator "NA"]
[PlyCount "51"]
[EventDate "2019.08.03"]
[EventType "swiss"]
[EventCountry "GER"]
[SourceTitle "playchess.com"]
[Source "ChessBase"]
[SourceQuality "1"]
[TimeControl "40/5400+30:1800+30"]

1. e4 {[%emt 0:00:00]} c5 {[%emt 0:08:28]} 2. Nf3 {[%emt 0:01:42]} e6 {[%emt 0:00:15]} 3. d4 {[%emt 0:00:44]} cxd4 {[%emt 0:00:15]} 4. Nxd4 {[%emt 0:00:12]} Nc6 {[%emt 0:00:28]} 5. Nc3 {[%emt 0:00:36]} Qc7 {[%emt 0:00:18]} 6. Nxc6 {[%emt 0:00:33]} bxc6 {[%emt 0:00:52]} 7. Bd3 {[%emt 0:01:06]} Bb4 {[%emt 0:03:05]} 8. O-O {[%emt 0:01:56]} Ne7 {[%emt 0:04:26]} 9. f4 {[%emt 0:03:50]} Bb7 {[%emt 0:22:32]} 10. Be3 {[%emt 0:03:34]} Ba5 {[%emt 0:12:42]} 11. Kh1 {[%emt 0:04:41]} Bb6 {[%emt 0:00:55]} 12. Bd2 {[%emt 0:00:09]} O-O-O {[%emt 0:03:03]} 13. Qe2 {[%emt 0:01:19]} f5 {[%emt 0:02:14]} 14. e5 {[%emt 0:02:55]} g5 {[%emt 0:02:21]} 15. Na4 {[%emt 0:03:30]} gxf4 {[%emt 0:03:06]} 16. Nxb6+ {[%emt 0:00:13]} axb6 {[%emt 0:01:07]} 17. Bxf4 {[%emt 0:03:43]} h6 {[%emt 0:07:34]} 18. a4 {[%emt 0:07:57]} Ng6 {[%emt 0:02:48]} 19. a5 {[%emt 0:02:13]} bxa5 {[%emt 0:03:08]} 20. Qd2 {[%emt 0:00:24]} c5 {[%emt 0:05:22]} 21. Rxa5 {[%emt 0:14:27]} Rdg8 {[%emt 0:03:09]} 22. Ba6 {[%emt 0:02:26]} Nh4 {[%emt 0:04:19]} 23. Bg3 {[%emt 0:01:27]} Rg4 {[%emt 0:04:42]} 24. Bxb7+ {[%emt 0:05:31]} Qxb7 {[%emt 0:01:05]} 25. Rfa1 {[%emt 0:01:47]} Kb8 {[%emt 0:01:56]} 26. Qd6+ {[%emt 0:36:05]} 1-0

[Event "Lueneburg Open-A 2019"]
[Site "Lueneburg"]
[Date "2019.08.03"]
[Round "1.26"]
[White "Schulze, Lukas"]
[Black "Andersen, Jens Knud"]
[Result "1/2-1/2"]
[ECO "E60"]
[WhiteElo "1724"]
[BlackElo "2141"]
[Annotator "NA"]
[PlyCount "48"]
[EventDate "2019.08.03"]
[EventType "swiss"]
[EventCountry "GER"]
[SourceTitle "playchess.com"]
[Source "ChessBase"]
[SourceQuality "1"]
[TimeControl "40/5400+30:1800+30"]

1. Nf3 {[%emt 0:00:00]} Nf6 {[%emt 0:00:39]} 2. c4 {[%emt 0:00:00]} d6 {[%emt 0:01:28]} 3. d4 {[%emt 0:00:00]} g6 {[%emt 0:00:29]} 4. g3 {[%emt 0:00:33]} Bg7 {[%emt 0:00:18]} 5. Bg2 {[%emt 0:00:24]} O-O {[%emt 0:00:10]} 6. O-O {[%emt 0:00:26]} Nc6 {[%emt 0:01:34]} 7. d5 {[%emt 0:02:25]} Na5 {[%emt 0:00:16]} 8. Nbd2 {[%emt 0:04:45]} c5 {[%emt 0:00:59]} 9. e4 {[%emt 0:04:31]} a6 {[%emt 0:01:50]} 10. Rb1 {[%emt 0:01:30]} b5 {[%emt 0:03:44]} 11. b3 {[%emt 0:03:26]} Rb8 {[%emt 0:04:09]} 12. Qc2 {[%emt 0:02:20]} bxc4 {[%emt 0:04:53]} 13. bxc4 {[%emt 0:00:24]} Rxb1 {[%emt 0:00:21]} 14. Qxb1 {[%emt 0:00:57]} Bd7 {[%emt 0:08:42]} 15. Qc2 {[%emt 0:04:37]} Qc7 {[%emt 0:19:41]} 16. Bb2 {[%emt 0:02:30]} e5 {[%emt 0:03:33]} 17. Rb1 {[%emt 1:09:42]} Rb8 {[%emt 0:03:23]} 18. Bc3 {[%emt 0:00:00]} Rxb1+ {[%emt 0:00:46]} 19. Qxb1 {[%emt 0:00:00]} Nb7 {[%emt 0:01:53]} 20. Qb3 {[%emt 0:00:00]} Bf8 {[%emt 0:03:09]} 21. Qb2 {[%emt 0:00:00]} Ne8 {[%emt 0:02:43]} 22. Qa3 {[%emt 0:00:00]} Qb6 {[%emt 0:00:48]} 23. Nb3 {[%emt 0:00:00]} Be7 {[%emt 0:01:00]} 24. Bd2 {[%emt 0:00:00]} Bd8 {[%emt 0:01:34]} 1/2-1/2

[Event "Lueneburg Open-A 2019"]
[Site "Lueneburg"]
[Date "2019.08.03"]
[Round "1.27"]
[White "Wronn, Bernd"]
[Black "Ahrens, Gunnar"]
[Result "1-0"]
[ECO "A33"]
[WhiteElo "2128"]
[BlackElo "1764"]
[Annotator "NA"]
[PlyCount "45"]
[EventDate "2019.08.03"]
[EventType "swiss"]
[EventCountry "GER"]
[SourceTitle "playchess.com"]
[Source "ChessBase"]
[SourceQuality "1"]
[TimeControl "40/5400+30:1800+30"]

1. Nf3 {[%emt 0:00:00]} Nf6 {[%emt 0:00:00]} 2. c4 {[%emt 0:00:00]} e6 {[%emt 0:00:01]} 3. g3 {[%emt 0:00:00]} Be7 {[%emt 0:00:21]} 4. Bg2 {[%emt 0:00:00]} O-O {[%emt 0:00:14]} 5. O-O {[%emt 0:00:00]} c5 {[%emt 0:00:16]} 6. d4 {[%emt 0:00:00]} cxd4 {[%emt 0:00:26]} 7. Nxd4 {[%emt 0:00:00]} Nc6 {[%emt 0:00:36]} 8. Nc3 {[%emt 0:00:05]} a6 {[%emt 0:00:18]} 9. e4 {[%emt 0:01:31]} Rb8 {[%emt 0:00:38]} 10. Be3 {[%emt 0:04:08]} Qc7 {[%emt 0:02:01]} 11. Rc1 {[%emt 0:00:39]} d6 {[%emt 0:02:02]} 12. Nd5 {[%emt 0:05:02]} Qd8 {[%emt 0:01:19]} 13. Nxe7+ {[%emt 0:01:43]} Qxe7 {[%emt 0:00:26]} 14. Qd2 {[%emt 0:07:23]} Nxd4 {[%emt 0:02:33]} 15. Bxd4 {[%emt 0:00:03]} e5 {[%emt 0:00:46]} 16. Bb6 {[%emt 0:01:00]} Qd7 {[%emt 0:04:11]} 17. Rfd1 {[%emt 0:00:54]} Ne8 {[%emt 0:01:11]} 18. c5 {[%emt 0:03:15]} Qb5 {[%emt 0:03:46]} 19. Bf1 {[%emt 0:06:06]} Qc6 {[%emt 0:05:14]} 20. Qe3 {[%emt 0:04:46]} Bg4 {[%emt 0:01:38]} 21. f3 {[%emt 0:00:08]} Be6 {[%emt 0:00:15]} 22. cxd6 {[%emt 0:00:31]} Qa4 {[%emt 0:00:58]} 23. d7 {[%emt 0:01:24]} 1-0

[Event "Lueneburg Open-A 2019"]
[Site "Lueneburg"]
[Date "2019.08.03"]
[Round "1.28"]
[White "Indinger, Alexander"]
[Black "Dijkhuis, Oele"]
[Result "1-0"]
[ECO "A26"]
[WhiteElo "1764"]
[BlackElo "2161"]
[Annotator "NA"]
[PlyCount "65"]
[EventDate "2019.08.03"]
[EventType "swiss"]
[EventCountry "GER"]
[SourceTitle "playchess.com"]
[Source "ChessBase"]
[SourceQuality "1"]
[TimeControl "40/5400+30:1800+30"]

1. c4 {[%emt 0:00:00]} Nf6 {[%emt 0:07:15]} 2. g3 {[%emt 0:00:44]} g6 {[%emt 0:00:10]} 3. Bg2 {[%emt 0:00:12]} Bg7 {[%emt 0:00:12]} 4. Nc3 {[%emt 0:00:27]} O-O {[%emt 0:00:15]} 5. e4 {[%emt 0:00:58]} d6 {[%emt 0:00:07]} 6. Nge2 {[%emt 0:00:44]} e5 {[%emt 0:02:08]} 7. O-O {[%emt 0:03:14]} Nc6 {[%emt 0:01:44]} 8. d3 {[%emt 0:01:58]} Nd4 {[%emt 0:00:59]} 9. Be3 {[%emt 0:04:47]} c5 {[%emt 0:00:57]} 10. Rb1 {[%emt 0:04:46]} Bd7 {[%emt 0:04:47]} 11. b4 {[%emt 0:03:00]} b6 {[%emt 0:00:37]} 12. bxc5 {[%emt 0:05:24]} dxc5 {[%emt 0:04:35]} 13. h3 {[%emt 0:08:30]} Bc6 {[%emt 0:13:17]} 14. Nd5 {[%emt 0:08:22]} Nxd5 {[%emt 0:03:53]} 15. exd5 {[%emt 0:00:07]} Ba4 {[%emt 0:02:00]} 16. Qd2 {[%emt 0:07:09]} Qd6 {[%emt 0:00:28]} 17. Nc3 {[%emt 0:01:29]} Bd7 {[%emt 0:01:05]} 18. Ne4 {[%emt 0:00:34]} Qc7 {[%emt 0:06:21]} 19. f4 {[%emt 0:13:02]} Nf5 {[%emt 0:06:02]} 20. fxe5 {[%emt 0:04:26]} Bxe5 {[%emt 0:17:24]} 21. Bf4 {[%emt 0:03:35]} f6 {[%emt 0:00:22]} 22. Rbe1 {[%emt 0:06:14]} Bd4+ {[%emt 0:01:55]} 23. Kh2 {[%emt 0:00:54]} Qc8 {[%emt 0:00:27]} 24. Re2 {[%emt 0:05:08]} Re8 {[%emt 0:03:38]} 25. Rfe1 {[%emt 0:03:08]} Kh8 {[%emt 0:02:06]} 26. Nd6 {[%emt 0:02:52]} Rxe2 {[%emt 0:05:05]} 27. Qxe2 {[%emt 0:00:02]} Qf8 {[%emt 0:00:24]} 28. Nxf5 {[%emt 0:02:34]} Bxf5 {[%emt 0:00:02]} 29. Qe7 {[%emt 0:00:25]} Be5 {[%emt 0:07:38]} 30. Rxe5 {[%emt 0:08:44]} fxe5 {[%emt 0:01:07]} 31. Bxe5+ {[%emt 0:00:15]} Kg8 {[%emt 0:00:03]} 32. d6 {[%emt 0:00:22]} Be4 {[%emt 0:07:08]} 33. Bxe4 {[%emt 0:01:09]} 1-0

[Event "Lueneburg Open-A 2019"]
[Site "Lueneburg"]
[Date "2019.08.03"]
[Round "1.29"]
[White "Rick, Uwe"]
[Black "Mandelkow, Elias"]
[Result "1-0"]
[ECO "A20"]
[WhiteElo "2113"]
[BlackElo "1741"]
[Annotator "NA"]
[PlyCount "103"]
[EventDate "2019.08.03"]
[EventType "swiss"]
[EventCountry "GER"]
[SourceTitle "playchess.com"]
[Source "ChessBase"]
[SourceQuality "1"]
[TimeControl "40/5400+30:1800+30"]

1. c4 {[%emt 0:00:00]} e5 {[%emt 0:00:00]} 2. g3 {[%emt 0:00:00]} Nf6 {[%emt 0:00:45]} 3. Bg2 {[%emt 0:00:08]} c6 {[%emt 0:00:28]} 4. d4 {[%emt 0:00:08]} exd4 {[%emt 0:01:43]} 5. Qxd4 {[%emt 0:00:09]} d5 {[%emt 0:01:53]} 6. Nf3 {[%emt 0:01:24]} Nbd7 {[%emt 0:05:39]} 7. cxd5 {[%emt 0:02:44]} Bc5 {[%emt 0:01:49]} 8. Qd1 {[%emt 0:01:00]} Nxd5 {[%emt 0:04:08]} 9. O-O {[%emt 0:01:50]} O-O {[%emt 0:02:05]} 10. e4 {[%emt 0:02:42]} N5f6 {[%emt 0:04:59]} 11. Nc3 {[%emt 0:02:15]} Re8 {[%emt 0:05:25]} 12. Qc2 {[%emt 0:07:51]} Bb4 {[%emt 0:04:33]} 13. Re1 {[%emt 0:11:42]} Nc5 {[%emt 0:07:15]} 14. e5 {[%emt 0:01:56]} Nfd7 {[%emt 0:18:17]} 15. a3 {[%emt 0:08:18]} Bxc3 {[%emt 0:02:08]} 16. Qxc3 {[%emt 0:00:18]} Ne6 {[%emt 0:02:14]} 17. Be3 {[%emt 0:11:37]} Nb6 {[%emt 0:04:10]} 18. Rad1 {[%emt 0:04:28]} Nd5 {[%emt 0:02:13]} 19. Qc2 {[%emt 0:00:44]} Bd7 {[%emt 0:07:37]} 20. Nd2 {[%emt 0:06:05]} Nec7 {[%emt 0:06:08]} 21. Nc4 {[%emt 0:02:16]} b5 {[%emt 0:04:57]} 22. Na5 {[%emt 0:08:08]} Re6 {[%emt 0:05:21]} 23. Bd2 {[%emt 0:01:59]} Qc8 {[%emt 0:03:26]} 24. f4 {[%emt 0:01:40]} Na6 {[%emt 0:01:58]} 25. b4 {[%emt 0:02:59]} Re8 {[%emt 0:01:55]} 26. Be4 {[%emt 0:01:00]} h6 {[%emt 0:00:22]} 27. Rc1 {[%emt 0:00:44]} Nb8 {[%emt 0:00:40]} 28. Qd3 {[%emt 0:03:53]} Ne7 {[%emt 0:00:53]} 29. Be3 {[%emt 0:02:31]} Bf5 {[%emt 0:00:48]} 30. Red1 {[%emt 0:01:43]} Bxe4 {[%emt 0:00:31]} 31. Qxe4 {[%emt 0:00:04]} Qe6 {[%emt 0:00:12]} 32. Rd2 {[%emt 0:02:50]} Qf5 {[%emt 0:00:30]} 33. Qxf5 {[%emt 0:00:55]} Nxf5 {[%emt 0:00:07]} 34. Bf2 {[%emt 0:00:07]} Ne7 {[%emt 0:00:38]} 35. Bc5 {[%emt 0:01:44]} Nc8 {[%emt 0:01:03]} 36. Rcd1 {[%emt 0:00:22]} Nb6 {[%emt 0:00:18]} 37. Rd8 {[%emt 0:01:02]} N8d7 {[%emt 0:00:30]} 38. R8xd7 {[%emt 0:01:26]} Nxd7 {[%emt 0:00:06]} 39. Rxd7 {[%emt 0:00:07]} Red8 {[%emt 0:00:35]} 40. Rxd8+ {[%emt 0:01:07]} Rxd8 {[%emt 0:00:08]} 41. Nxc6 {[%emt 0:30:21]} Rd1+ {[%emt 0:30:40]} 42. Kg2 {[%emt 0:00:23]} a6 {[%emt 0:00:52]} 43. Nb8 {[%emt 0:00:21]} Ra1 {[%emt 0:00:00]} 44. Nxa6 {[%emt 0:00:00]} Rxa3 {[%emt 0:00:00]} 45. Nc7 {[%emt 0:00:00]} Ra2+ {[%emt 0:00:00]} 46. Kh3 {[%emt 0:00:00]} Kh7 {[%emt 0:00:00]} 47. Nxb5 {[%emt 0:00:00]} g5 {[%emt 0:00:00]} 48. Nd6 {[%emt 0:00:00]} Kg6 {[%emt 0:00:00]} 49. b5 {[%emt 0:00:00]} Rc2 {[%emt 0:00:00]} 50. b6 {[%emt 0:00:00]} g4+ {[%emt 0:00:00]} 51. Kxg4 {[%emt 0:00:00]} h5+ {[%emt 0:00:00]} 52. Kh3 {[%emt 0:00:00]} 1-0

[Event "Lueneburg Open-A 2019"]
[Site "Lueneburg"]
[Date "2019.08.03"]
[Round "1.30"]
[White "Kasipour Azbari, Seyed Arvin"]
[Black "Hommer, Jeremy"]
[Result "1-0"]
[ECO "E57"]
[WhiteElo "1765"]
[BlackElo "2083"]
[Annotator "NA"]
[PlyCount "41"]
[EventDate "2019.08.03"]
[EventType "swiss"]
[EventCountry "GER"]
[SourceTitle "playchess.com"]
[Source "ChessBase"]
[SourceQuality "1"]
[TimeControl "40/5400+30:1800+30"]

1. e4 {[%emt 0:00:46]} c6 {[%emt 0:00:00]} 2. d4 {[%emt 0:00:05]} d5 {[%emt 0:00:00]} 3. exd5 {[%emt 0:00:01]} cxd5 {[%emt 0:00:00]} 4. c4 {[%emt 0:00:07]} Nf6 {[%emt 0:00:00]} 5. Nc3 {[%emt 0:00:04]} Nc6 {[%emt 0:00:11]} 6. Bg5 {[%emt 0:00:14]} dxc4 {[%emt 0:09:09]} 7. Bxc4 {[%emt 0:00:09]} e6 {[%emt 0:13:02]} 8. Nf3 {[%emt 0:03:16]} Be7 {[%emt 0:00:45]} 9. O-O {[%emt 0:03:16]} O-O {[%emt 0:00:10]} 10. Qd2 {[%emt 0:01:48]} a6 {[%emt 0:06:43]} 11. Rfd1 {[%emt 0:08:03]} b5 {[%emt 0:05:50]} 12. Bb3 {[%emt 0:02:16]} Na5 {[%emt 0:09:04]} 13. Bc2 {[%emt 0:02:30]} Nc4 {[%emt 0:00:14]} 14. Qf4 {[%emt 0:03:08]} Nxb2 {[%emt 0:06:40]} 15. Rdb1 {[%emt 0:01:20]} Nc4 {[%emt 0:00:21]} 16. Bxf6 {[%emt 0:01:44]} Bxf6 {[%emt 0:00:30]} 17. Qe4 {[%emt 0:00:31]} g6 {[%emt 0:04:44]} 18. Qxa8 {[%emt 0:00:11]} Na3 {[%emt 0:01:30]} 19. Rc1 {[%emt 0:02:34]} Qb6 {[%emt 0:13:53]} 20. Qe4 {[%emt 0:01:58]} e5 {[%emt 0:03:22]} 21. Nd5 {[%emt 0:01:46]} 1-0

[Event "Lueneburg Open-A 2019"]
[Site "Lueneburg"]
[Date "2019.08.03"]
[Round "1.31"]
[White "Klages, Hans Juergen"]
[Black "Wiese, Uwe"]
[Result "1-0"]
[ECO "A95"]
[WhiteElo "2095"]
[BlackElo "1737"]
[Annotator "NA"]
[PlyCount "47"]
[EventDate "2019.08.03"]
[EventType "swiss"]
[EventCountry "GER"]
[SourceTitle "playchess.com"]
[Source "ChessBase"]
[SourceQuality "1"]
[TimeControl "40/5400+30:1800+30"]

1. d4 {[%emt 0:00:07]} f5 {[%emt 0:00:00]} 2. g3 {[%emt 0:00:18]} Nf6 {[%emt 0:00:00]} 3. Bg2 {[%emt 0:00:06]} e6 {[%emt 0:00:23]} 4. c4 {[%emt 0:00:14]} Be7 {[%emt 0:00:46]} 5. Nf3 {[%emt 0:00:10]} O-O {[%emt 0:00:29]} 6. O-O {[%emt 0:00:13]} c6 {[%emt 0:00:35]} 7. Nc3 {[%emt 0:00:14]} d5 {[%emt 0:01:28]} 8. b3 {[%emt 0:00:50]} Ne4 {[%emt 0:01:40]} 9. Nxe4 {[%emt 0:00:39]} fxe4 {[%emt 0:00:34]} 10. Ne5 {[%emt 0:00:08]} Nd7 {[%emt 0:01:08]} 11. f4 {[%emt 0:03:20]} exf3 {[%emt 0:01:31]} 12. Nxf3 {[%emt 0:01:30]} Qc7 {[%emt 0:07:00]} 13. Bh3 {[%emt 0:10:18]} Nf6 {[%emt 0:00:43]} 14. Ng5 {[%emt 0:00:44]} e5 {[%emt 0:05:24]} 15. Qc2 {[%emt 0:17:31]} Bxh3 {[%emt 0:02:02]} 16. Rxf6 {[%emt 0:00:45]} e4 {[%emt 0:07:02]} 17. Rxf8+ {[%emt 0:01:13]} Rxf8 {[%emt 0:00:15]} 18. Nxh3 {[%emt 0:00:11]} Bf6 {[%emt 0:01:31]} 19. Be3 {[%emt 0:03:03]} Qd7 {[%emt 0:01:04]} 20. Nf4 {[%emt 0:03:42]} Qg4 {[%emt 0:00:55]} 21. Rf1 {[%emt 0:03:14]} h5 {[%emt 0:03:29]} 22. cxd5 {[%emt 0:52:30]} h4 {[%emt 1:03:01]} 23. Qxe4 {[%emt 0:00:00]} hxg3 {[%emt 0:00:00]} 24. h3 {[%emt 0:00:00]} 1-0

[Event "Lueneburg Open-A 2019"]
[Site "Lueneburg"]
[Date "2019.08.03"]
[Round "1.32"]
[White "Thomas, Jeremy"]
[Black "Chennaoui, Yasin"]
[Result "0-1"]
[ECO "B63"]
[WhiteElo "1717"]
[BlackElo "2092"]
[Annotator "NA"]
[PlyCount "58"]
[EventDate "2019.08.03"]
[EventType "swiss"]
[EventCountry "GER"]
[SourceTitle "playchess.com"]
[Source "ChessBase"]
[SourceQuality "1"]
[TimeControl "40/5400+30:1800+30"]

1. e4 {[%emt 0:00:00]} c5 {[%emt 0:00:07]} 2. Nf3 {[%emt 0:00:00]} Nc6 {[%emt 0:00:02]} 3. d4 {[%emt 0:00:00]} cxd4 {[%emt 0:00:05]} 4. Nxd4 {[%emt 0:00:00]} Nf6 {[%emt 0:00:05]} 5. Nc3 {[%emt 0:00:01]} d6 {[%emt 0:00:21]} 6. Bg5 {[%emt 0:02:55]} e6 {[%emt 0:00:08]} 7. f4 {[%emt 0:02:01]} Be7 {[%emt 0:00:59]} 8. Qd2 {[%emt 0:03:42]} h6 {[%emt 0:00:38]} 9. Bh4 {[%emt 0:00:10]} Nxe4 {[%emt 0:00:48]} 10. Bxe7 {[%emt 0:02:14]} Nxd2 {[%emt 0:00:08]} 11. Bxd8 {[%emt 0:00:08]} Nxf1 {[%emt 0:02:01]} 12. Nxc6 {[%emt 0:03:13]} bxc6 {[%emt 0:00:04]} 13. Bc7 {[%emt 0:00:13]} Ne3 {[%emt 0:00:06]} 14. Kd2 {[%emt 0:00:17]} Kd7 {[%emt 0:00:30]} 15. Kxe3 {[%emt 0:00:27]} Kxc7 {[%emt 0:00:01]} 16. b3 {[%emt 0:00:28]} a5 {[%emt 0:02:34]} 17. a4 {[%emt 0:00:21]} Ba6 {[%emt 0:22:34]} 18. Rhd1 {[%emt 0:03:23]} Rhe8 {[%emt 0:09:33]} 19. Ne4 {[%emt 0:04:07]} Rad8 {[%emt 0:01:31]} 20. Rd2 {[%emt 0:01:36]} f5 {[%emt 0:04:56]} 21. Ng3 {[%emt 0:01:18]} g5 {[%emt 0:00:15]} 22. Rad1 {[%emt 0:00:33]} gxf4+ {[%emt 0:05:11]} 23. Kxf4 {[%emt 0:00:10]} Bc8 {[%emt 0:00:44]} 24. Nf1 {[%emt 0:01:43]} e5+ {[%emt 0:00:07]} 25. Kf3 {[%emt 0:00:20]} d5 {[%emt 0:01:16]} 26. Ne3 {[%emt 0:00:32]} f4 {[%emt 0:01:47]} 27. Nxd5+ {[%emt 0:01:15]} cxd5 {[%emt 0:01:07]} 28. Rxd5 {[%emt 0:00:22]} Rxd5 {[%emt 0:00:24]} 29. Rxd5 {[%emt 0:00:01]} Bb7 {[%emt 0:00:09]} 0-1

[Event "Lueneburg Open-A 2019"]
[Site "Lueneburg"]
[Date "2019.08.03"]
[Round "1.33"]
[White "Schulz, Daniel"]
[Black "Guo, Philipp Ziming"]
[Result "1-0"]
[ECO "E18"]
[WhiteElo "2071"]
[BlackElo "1728"]
[Annotator "NA"]
[PlyCount "61"]
[EventDate "2019.08.03"]
[EventType "swiss"]
[EventCountry "GER"]
[SourceTitle "playchess.com"]
[Source "ChessBase"]
[SourceQuality "1"]
[TimeControl "40/5400+30:1800+30"]

1. d4 {[%emt 0:16:37]} Nf6 {[%emt 0:00:00]} 2. c4 {[%emt 0:00:11]} e6 {[%emt 0:00:00]} 3. g3 {[%emt 0:00:21]} d5 {[%emt 0:00:13]} 4. Nf3 {[%emt 0:00:12]} b6 {[%emt 0:01:44]} 5. cxd5 {[%emt 0:00:36]} exd5 {[%emt 0:00:12]} 6. Bg2 {[%emt 0:00:14]} Bb7 {[%emt 0:00:49]} 7. O-O {[%emt 0:00:13]} Nbd7 {[%emt 0:01:59]} 8. Nc3 {[%emt 0:00:20]} Be7 {[%emt 0:02:32]} 9. Ne5 {[%emt 0:06:57]} O-O {[%emt 0:11:43]} 10. Qa4 {[%emt 0:04:42]} Nxe5 {[%emt 0:21:50]} 11. dxe5 {[%emt 0:00:21]} Nd7 {[%emt 0:04:18]} 12. Nxd5 {[%emt 0:06:14]} Nc5 {[%emt 0:05:00]} 13. Qc4 {[%emt 0:03:28]} b5 {[%emt 0:09:40]} 14. Nxe7+ {[%emt 0:03:24]} Qxe7 {[%emt 0:00:19]} 15. Qxb5 {[%emt 0:01:14]} Bxg2 {[%emt 0:01:02]} 16. Kxg2 {[%emt 0:00:14]} Rab8 {[%emt 0:04:24]} 17. Qc4 {[%emt 0:02:09]} Qxe5 {[%emt 0:00:53]} 18. Bf4 {[%emt 0:01:18]} Qe7 {[%emt 0:01:37]} 19. b3 {[%emt 0:09:29]} Rfe8 {[%emt 0:05:50]} 20. Rac1 {[%emt 0:05:47]} Ne6 {[%emt 0:02:34]} 21. Be3 {[%emt 0:00:19]} a5 {[%emt 0:06:39]} 22. Rfd1 {[%emt 0:00:39]} a4 {[%emt 0:02:06]} 23. bxa4 {[%emt 0:02:46]} Rb4 {[%emt 0:01:21]} 24. Qc6 {[%emt 0:00:35]} Reb8 {[%emt 0:01:18]} 25. a5 {[%emt 0:01:18]} Rb2 {[%emt 0:02:33]} 26. a6 {[%emt 0:00:55]} Rxa2 {[%emt 0:00:56]} 27. a7 {[%emt 0:00:25]} Rc8 {[%emt 0:00:23]} 28. Ra1 {[%emt 0:02:28]} Ra3 {[%emt 0:01:36]} 29. Bc5 {[%emt 0:03:32]} Qxc5 {[%emt 0:02:24]} 30. Qxc5 {[%emt 0:00:54]} Rxa1 {[%emt 0:00:51]} 31. Rxa1 {[%emt 0:00:28]} 1-0